bitfinex/quotes_SOLUSD_20250811
["timestamp","ask_amount","ask_price","bid_price","bid_amount"]
[1754883070275,0.71,184.99,184.95,19.99445252]
[1754883070454,0.71,184.99,184.95,38.34]
[1754883071852,10.23374481,185.0,184.95,39.04]
[1754883072182,10.23374481,185.0,184.95,43.16823695]
[1754883072583,10.23374481,185.0,184.95,43.86823695]
[1754883072885,5.4048211,185.02,184.95,48.57499771]
[1754883073059,4.82823695,185.01,184.96,0.7]
[1754883073560,10.23404833,184.99,184.95,38.34]
[1754883073772,0.71,184.98,184.95,38.34]
[1754883074492,10.23404833,184.99,184.95,38.34]
[1754883074671,10.94404833,184.99,184.95,38.34]
[1754883074874,4.82823695,184.96,184.95,0.06]
[1754883075868,0.71,184.98,184.95,0.06]
[1754883076077,10.94451904,184.97,184.95,0.06]
[1754883076473,10.23451904,184.97,184.95,0.06]
[1754883076674,4.82823695,184.98,184.95,0.06]
[1754883076995,4.82823695,184.99,184.95,0.06]
[1754883077196,4.82823695,184.99,184.95,0.76]
[1754883077383,4.82823695,184.99,184.95,0.06]
[1754883077384,4.82823695,184.97,184.95,0.06]
[1754883077779,5.53823695,184.97,184.95,0.06]
[1754883077973,5.40657439,184.96,184.95,0.06]
[1754883078295,10.94481134,184.96,184.95,0.06]
[1754883078871,26.0,184.93,184.91,0.06]
[1754883079068,30.82823695,184.92,184.91,0.06]
[1754883079269,0.71,184.92,184.91,0.06]
[1754883079492,5.53823695,184.92,184.91,0.06]
[1754883080196,6.11774388,184.92,184.91,0.06]
[1754883080402,5.40686672,184.95,184.91,0.76]
[1754883080704,5.40686672,184.95,184.92,5.52823695]
[1754883081211,5.40686672,184.95,184.91,0.06]
[1754883081376,5.40664249,184.96,184.92,4.82823695]
[1754883081577,5.40631558,184.97,184.92,4.82823695]
[1754883081779,5.40631558,184.97,184.93,0.7]
[1754883081996,10.23455253,184.97,184.91,5.58823695]
[1754883082197,5.53823695,184.96,184.91,0.06]
[1754883082504,0.71,184.96,184.91,4.88823695]
[1754883082681,4.82823695,184.96,184.91,0.06]
[1754883082882,5.53823695,184.95,184.91,0.06]
[1754883083401,0.71,184.94,184.91,0.06]
[1754883083576,4.82823695,184.96,184.91,5.58823695]
[1754883083994,4.82823695,184.96,184.92,0.7]
[1754883084204,26.0,184.97,184.93,5.52823695]
[1754883084506,69.70540665,185.0,184.95,4.82823695]
[1754883084801,69.70540665,185.0,184.95,5.52823695]
[1754883085199,43.70540665,185.0,184.95,5.52823695]
[1754883085407,43.70540665,185.0,184.96,0.7]
[1754883085789,38.3,185.0,184.96,0.7]
[1754883085992,0.03,185.03,184.98,4.82823695]
[1754883086187,0.03,185.03,184.99,4.82823695]
[1754883086385,0.03,185.03,184.94,15.10621557]
[1754883086586,0.74,185.03,184.96,0.7]
[1754883086784,0.74,185.03,184.98,4.82823695]
[1754883086985,0.74,185.03,184.96,0.7]
[1754883086986,0.03,185.03,185.02,4.82823695]
[1754883087280,0.03,185.03,185.02,5.52823695]
[1754883087680,0.03,185.03,185.02,20.63445252]
[1754883088105,0.03,185.03,185.02,26.03927362]
[1754883089596,0.03,185.03,185.02,30.86751057]
[1754883090199,0.03,185.03,185.02,28.80372996]
[1754883090592,0.03,185.03,185.02,21.21103667]
[1754883090800,0.03,185.03,185.02,23.39890886]
[1754883092615,0.03,185.03,185.01,22.69890886]
[1754883092793,0.03,185.03,185.0,15.10621557]
[1754883092994,0.03,185.03,185.01,7.59269329]
[1754883093599,0.03,185.03,185.01,0.71]
[1754883093801,0.03,185.03,185.02,7.59269329]
[1754883094008,0.03,185.03,185.02,8.30269329]
[1754883094211,0.03,185.03,185.02,7.59269329]
[1754883095110,0.03,185.03,185.02,8.30269329]
[1754883095796,0.03,185.03,185.02,7.59269329]
[1754883096809,0.03,185.03,185.01,7.59269329]
[1754883097199,0.03,185.03,185.02,7.59269329]
[1754883098097,0.03,185.03,185.02,8.30269329]
[1754883099311,0.03,185.03,185.02,7.59269329]
[1754883099490,0.03,185.03,185.0,23.40890886]
[1754883099692,0.72,185.03,184.99,45.89269329]
[1754883100315,0.03,185.03,185.0,0.71]
[1754883100513,0.03,185.03,185.01,0.71]
[1754883101622,0.03,185.03,184.99,45.89269329]
[1754883102190,0.03,185.03,185.0,8.30269329]
[1754883103091,0.03,185.03,185.0,7.59269329]
[1754883103418,0.03,185.03,184.99,39.01]
[1754883103598,0.03,185.03,185.0,7.59269329]
[1754883103933,0.03,185.03,185.0,8.30269329]
[1754883108433,0.72,185.03,184.99,38.3]
[1754883108617,0.03,185.03,185.0,8.30269329]
[1754883109409,0.03,185.03,184.99,133.30564927]
[1754883109610,0.03,185.03,185.01,0.71]
[1754883109926,0.03,185.03,185.01,7.59269329]
[1754883110239,0.03,185.03,185.0,8.30269329]
[1754883110611,0.03,185.03,185.0,0.71]
[1754883111231,0.03,185.03,185.01,0.71]
[1754883111433,0.03,185.03,185.02,7.59269329]
[1754883111825,0.03,185.03,185.02,8.30269329]
[1754883112226,0.03,185.03,185.02,5.53041951]
[1754883112735,0.03,185.03,185.02,43.81041951]
[1754883113253,0.03,185.03,185.0,38.28]
[1754883113453,0.03,185.03,185.02,4.82041951]
[1754883113943,0.03,185.03,185.02,5.53041951]
[1754883115354,0.03,185.03,185.02,4.82041951]
[1754883115539,0.03,185.03,185.0,38.28]
[1754883116054,5.54041951,185.03,185.0,38.28]
[1754883116346,4.82041951,185.01,184.96,0.71]
[1754883116526,0.03,185.03,184.97,4.82041951]
[1754883116732,0.03,185.03,184.99,4.82041951]
[1754883116930,0.03,185.03,184.98,5.53041951]
[1754883117134,0.69,185.02,184.98,0.71]
[1754883117539,0.03,185.03,184.97,4.82041951]
[1754883117839,0.03,185.03,185.02,4.82041951]
[1754883118153,0.03,185.03,185.02,58.20663508]
[1754883118350,0.03,185.03,185.02,58.91663508]
[1754883118524,0.03,185.03,185.02,43.81041951]
[1754883118729,0.03,185.03,185.02,43.10041951]
[1754883118924,0.03,185.03,185.02,58.91663508]
[1754883120559,0.03,185.03,185.02,43.10041951]
[1754883120728,0.03,185.03,185.02,43.81041951]
[1754883121135,0.03,185.03,185.02,43.10041951]
[1754883121449,0.03,185.03,185.0,38.3]
[1754883122339,0.03,185.03,185.02,4.82041951]
[1754883122692,0.03,185.03,185.02,19.92663508]
[1754883122852,0.03,185.03,185.02,20.63663508]
[1754883123354,0.03,185.03,185.02,148.53663508]
[1754883125823,0.03,185.03,185.02,64.34145618]
[1754883126022,0.03,185.03,185.02,69.16187569]
[1754883126224,0.03,185.03,185.02,67.11344134]
[1754883128741,0.03,185.03,185.02,69.27659734]
[1754883129485,0.03,185.03,185.02,158.87659734]
[1754883130191,0.03,185.03,185.02,156.71344134]
[1754883130877,0.03,185.03,185.02,67.07344134]
[1754883135570,0.03,185.03,185.02,22.69862024]
[1754883135765,0.03,185.03,185.02,66.36344134]
[1754883136562,0.03,185.03,185.02,60.95862024]
[1754883136880,0.03,185.03,185.02,66.36344134]
[1754883138061,0.03,185.03,185.02,67.07344134]
[1754883139476,0.03,185.03,185.02,60.95862024]
[1754883139656,0.03,185.03,185.02,66.36344134]
[1754883140379,0.03,185.03,185.02,67.07344134]
[1754883140588,0.03,185.03,185.02,67.61392345]
[1754883141097,0.03,185.03,185.02,157.21392345]
[1754883141388,0.03,185.03,185.02,156.67344134]
[1754883143312,0.03,185.03,185.02,119.86648034]
[1754883143501,0.03,185.03,185.02,156.67344134]
[1754883144708,0.03,185.03,185.02,182.67344134]
[1754883145087,0.03,185.03,185.02,156.67344134]
[1754883147290,0.03,185.03,185.02,155.96344134]
[1754883147902,0.03,185.03,185.02,156.67344134]
[1754883148289,0.03,185.03,185.02,153.8991409]
[1754883149706,0.03,185.03,185.02,158.71724513]
[1754883149907,0.03,185.04,185.03,19.9243198]
[1754883150085,0.03,185.04,185.03,20.46477269]
[1754883150288,0.03,185.04,185.03,26.52930168]
[1754883150782,0.03,185.04,185.03,64.24884879]
[1754883150982,0.03,185.04,185.03,64.78930168]
[1754883151210,0.03,185.04,185.03,154.38930168]
[1754883151378,0.03,185.04,185.03,153.84884879]
[1754883151990,0.03,185.04,185.03,156.01177079]
[1754883153186,0.03,185.04,185.03,155.35177079]
[1754883154689,0.03,185.04,185.03,143.09177079]
[1754883154898,0.03,185.04,185.03,179.18884879]
[1754883156227,0.4,185.04,185.0,5.4053398]
[1754883156393,0.4,185.04,184.99,4.81810423]
[1754883156593,4.81810423,185.02,184.97,2.163741]
[1754883156788,0.37,185.01,184.98,43.07810423]
[1754883156989,0.37,185.03,184.99,43.07810423]
[1754883157191,0.03,185.04,185.02,4.81810423]
[1754883157393,0.03,185.04,185.03,38.26]
[1754883157617,0.03,185.04,185.03,43.07810423]
[1754883158598,0.03,185.04,185.03,38.26]
[1754883159613,0.03,185.04,185.03,48.48263322]
[1754883159833,0.03,185.04,185.03,63.58884879]
[1754883160729,0.03,185.04,185.03,64.24884879]
[1754883161912,0.03,185.05,185.04,41.10621557]
[1754883162100,0.03,185.05,185.04,46.5843198]
[1754883162623,0.03,185.05,185.04,45.9243198]
[1754883162820,0.03,185.05,185.04,46.5843198]
[1754883163322,0.03,185.05,185.04,51.32855672]
[1754883164329,0.03,185.05,185.04,25.32855672]
[1754883164833,0.7,185.05,185.04,25.32855672]
[1754883165001,0.03,185.05,185.04,25.32855672]
[1754883165835,0.03,185.05,185.04,26.52898041]
[1754883166641,0.03,185.05,185.04,28.69190241]
[1754883167307,0.03,185.06,185.05,46.51016044]
[1754883167507,0.03,185.06,185.05,89.56826467]
[1754883167696,1e-08,185.06,185.05,179.16826467]
[1754883167891,1e-08,185.06,185.05,179.82826467]
[1754883170000,0.03,185.09,185.08,41.10621557]
[1754883170224,0.03,185.09,185.08,173.7643198]
[1754883170721,0.03,185.09,185.08,174.4243198]
[1754883172033,0.03,185.09,185.08,179.16738874]
[1754883172628,0.7,185.09,185.08,179.16738874]
[1754883172928,0.03,185.09,185.08,179.16738874]
[1754883175553,0.03,185.09,185.08,179.82738874]
[1754883175906,0.03,185.09,185.08,179.16738874]
[1754883182429,0.03,185.09,185.08,179.88738874]
[1754883182755,0.03,185.11,185.09,15.10621557]
[1754883182906,0.03,185.11,185.1,43.05810423]
[1754883183242,0.03,185.11,185.1,133.37810423]
[1754883183537,0.03,185.11,185.1,132.65810423]
[1754883183835,0.03,185.11,185.1,138.06058937]
[1754883184533,0.03,185.11,185.1,132.65810423]
[1754883184739,0.03,185.11,185.1,147.7643198]
[1754883185439,0.03,185.11,185.1,153.16680494]
[1754883186022,0.03,185.11,185.1,109.5243198]
[1754883186216,0.03,185.11,185.1,147.7643198]
[1754883186924,0.03,185.11,185.1,153.88680494]
[1754883187117,0.03,185.11,185.1,153.16680494]
[1754883187451,0.03,185.11,185.1,148.34870071]
[1754883187612,0.03,185.11,185.1,109.5243198]
[1754883187924,6.14225945,185.11,185.1,38.24]
[1754883188114,0.74,185.11,185.1,38.24]
[1754883188314,6.14219329,185.11,185.1,38.24]
[1754883188623,6.14219329,185.11,185.06,4.81810423]
[1754883188936,5.52810423,185.1,185.07,38.24]
[1754883189135,0.71,185.09,185.08,38.24]
[1754883189645,0.03,185.11,185.08,43.05810423]
[1754883189646,0.74,185.11,185.08,43.05810423]
[1754883190137,0.71,185.1,185.08,38.24]
[1754883190339,0.71,185.09,185.08,38.24]
[1754883191044,0.74,185.11,185.08,38.24]
[1754883191421,0.71,185.1,185.08,38.24]
[1754883191918,0.71,185.09,185.08,38.24]
[1754883192323,5.52810423,185.09,185.05,0.06]
[1754883192524,0.71,185.08,185.06,38.28]
[1754883192743,5.52810423,185.07,185.05,0.06]
[1754883192950,0.71,185.06,185.05,0.06]
[1754883193249,5.52810423,185.06,185.05,0.06]
[1754883193936,10.93175709,185.06,185.05,0.06]
[1754883194143,6.11365286,185.06,185.05,0.06]
[1754883194331,10.93175709,185.06,185.05,0.06]
[1754883196763,0.71,185.08,185.05,0.06]
[1754883196932,0.71,185.1,185.05,4.87810423]
[1754883197372,26.71,185.1,185.05,4.87810423]
[1754883197872,36.93058937,185.1,185.05,4.87810423]
[1754883198035,0.71,185.09,185.05,0.06]
[1754883198346,0.03,185.11,185.06,8.3155956]
[1754883198745,0.74,185.11,185.06,8.3155956]
[1754883198951,6.14220886,185.11,185.06,8.3155956]
[1754883199955,0.74,185.11,185.06,8.3155956]
[1754883200169,0.03,185.11,185.08,7.5955956]
[1754883200340,0.03,185.11,185.08,8.3155956]
[1754883200662,0.03,185.11,185.09,7.5955956]
[1754883200964,0.03,185.11,185.1,8.3155956]
[1754883201775,0.03,185.11,185.1,7.5955956]
[1754883203241,0.03,185.11,185.09,7.5955956]
[1754883203641,0.03,185.11,185.09,8.3155956]
[1754883204373,0.03,185.11,185.1,8.3155956]
[1754883205083,0.03,185.11,185.1,23.42181117]
[1754883206180,0.03,185.11,185.1,28.82429631]
[1754883207564,0.03,185.11,185.1,21.22870071]
[1754883207739,0.03,185.11,185.1,28.10429631]
[1754883207944,0.03,185.11,185.08,44.62280795]
[1754883208142,0.03,185.11,185.09,7.5955956]
[1754883208868,0.03,185.11,185.09,15.10621557]
[1754883209044,0.2,185.11,185.08,38.4]
[1754883209452,0.03,185.11,185.08,38.4]
[1754883210447,0.2,185.11,185.07,89.6]
[1754883210649,0.7,185.1,185.08,38.4]
[1754883210856,7.6255956,185.11,185.08,38.4]
[1754883211050,0.73,185.11,185.08,38.4]
[1754883211454,0.03,185.11,185.08,38.4]
[1754883212569,0.03,185.11,185.08,39.06]
[1754883212877,0.03,185.11,185.1,7.5955956]
[1754883213482,0.03,185.11,185.1,8.2555956]
[1754883214868,0.03,185.11,185.1,13.65808074]
[1754883215182,0.03,185.11,185.1,28.76429631]
[1754883215746,0.03,185.11,185.1,21.16870071]
[1754883215959,0.03,185.11,185.1,59.56870071]
[1754883216165,0.03,185.11,185.1,67.16429631]
[1754883216368,0.03,185.11,185.1,38.4]
[1754883216750,0.03,185.11,185.1,45.9955956]
[1754883218977,0.03,185.11,185.1,38.4]
[1754883219169,0.03,185.11,185.1,45.9955956]
[1754883219365,0.03,185.11,185.1,46.6555956]
[1754883219571,0.03,185.11,185.1,52.05808074]
[1754883220170,0.03,185.11,185.1,49.2793517]
[1754883221287,0.03,185.11,185.1,64.38556727]
[1754883222684,0.03,185.11,185.1,153.98556727]
[1754883223695,0.01,185.11,185.1,153.98556727]
[1754883228681,0.01,185.11,185.1,149.16870071]
[1754883228862,0.01,185.11,185.1,153.98556727]
[1754883233196,0.01,185.11,185.1,156.14767127]
[1754883233375,0.01,185.11,185.1,151.33080471]
[1754883233578,0.01,185.11,185.1,153.98556727]
[1754883234671,0.06,185.13,185.11,15.10621557]
[1754883234876,0.06,185.13,185.12,63.07994869]
[1754883235105,0.06,185.13,185.12,58.92308213]
[1754883236483,0.06,185.13,185.12,64.32498359]
[1754883237205,0.06,185.13,185.12,59.50811703]
[1754883237378,0.06,185.13,185.12,64.32498359]
[1754883237572,0.06,185.13,185.12,69.68204029]
[1754883238598,0.06,185.15,185.14,45.92308213]
[1754883238778,0.06,185.15,185.14,84.36308213]
[1754883238979,0.06,185.15,185.14,85.02308213]
[1754883240405,0.06,185.15,185.14,84.36308213]
[1754883240709,0.06,185.15,185.14,89.76440005]
[1754883241403,0.06,185.15,185.14,84.94753349]
[1754883241574,0.06,185.15,185.14,84.36308213]
[1754883241775,0.06,185.15,185.14,89.76440005]
[1754883242280,0.72,185.15,185.13,89.6]
[1754883242480,0.72,185.15,185.14,38.42]
[1754883242481,0.06,185.15,185.14,38.42]
[1754883243106,0.72,185.15,185.14,38.42]
[1754883244109,0.06,185.15,185.14,43.23686656]
[1754883244706,0.06,185.15,185.14,63.74440005]
[1754883247212,0.06,185.15,185.14,58.34308213]
[1754883247604,0.06,185.15,185.14,147.94308213]
[1754883248288,0.06,185.15,185.14,153.34440005]
[1754883249205,0.06,185.15,185.14,64.40440005]
[1754883249410,0.06,185.15,185.14,154.00440005]
[1754883251201,0.06,185.15,185.14,149.18753349]
[1754883251507,0.06,185.15,185.14,154.00440005]
[1754883252603,0.06,185.15,185.14,114.92440005]
[1754883252808,0.06,185.15,185.14,153.96440005]
[1754883254522,0.06,185.15,185.14,149.14753349]
[1754883254702,0.06,185.15,185.14,153.96440005]
[1754883256127,0.02758382,185.15,185.14,153.96440005]
[1754883257901,0.03,185.17,185.16,26.0]
[1754883258104,0.03,185.17,185.16,158.75686656]
[1754883258315,0.03,185.17,185.16,174.52308213]
[1754883258740,1e-08,185.17,185.16,174.52308213]
[1754883259514,1e-08,185.17,185.16,179.92381662]
[1754883259723,1e-08,185.17,185.16,179.26381662]
[1754883259939,1e-08,185.17,185.16,179.92381662]
[1754883261127,0.1,185.18,185.17,15.10621557]
[1754883261312,0.1,185.18,185.17,21.12312641]
[1754883261709,0.1,185.18,185.17,26.52356924]
[1754883261936,0.06,185.19,185.17,116.12356924]
[1754883262151,0.06,185.19,185.18,58.22308213]
[1754883262439,0.06,185.21,185.2,15.10621557]
[1754883262613,0.06,185.21,185.2,164.61303893]
[1754883262815,0.06,185.21,185.2,164.73308213]
[1754883263318,0.06,185.21,185.2,148.50308213]
[1754883263514,1e-08,185.21,185.2,148.50308213]
[1754883263834,1e-08,185.21,185.2,153.90265016]
[1754883264334,1e-08,185.21,185.2,170.13265016]
[1754883264533,1e-08,185.21,185.2,153.90265016]
[1754883265205,0.66,185.28,185.24,41.10621557]
[1754883265443,0.66,185.28,185.27,19.92308213]
[1754883265642,0.66,185.28,185.27,58.22308213]
[1754883265851,0.66,185.28,185.27,63.62061006]
[1754883266213,0.66,185.28,185.27,10.21439449]
[1754883266413,0.66,185.28,185.27,48.51439449]
[1754883266741,0.66,185.28,185.27,43.11686656]
[1754883266923,0.66,185.28,185.27,48.51439449]
[1754883267127,0.66,185.32,185.28,15.10621557]
[1754883267329,0.66,185.31,185.3,4.81686656]
[1754883268113,0.66,185.31,185.29,43.67690946]
[1754883268317,36.21216298,185.35,185.3,4.81686656]
[1754883268518,31.39529642,185.35,185.31,38.26]
[1754883268828,0.66,185.34,185.31,38.26]
[1754883269028,5.47686656,185.34,185.31,38.26]
[1754883269223,0.66,185.33,185.3,38.26]
[1754883271030,0.66,185.33,185.29,43.05686656]
[1754883271550,0.66,185.33,185.29,38.24]
[1754883271939,0.66,185.33,185.29,43.63694036]
[1754883272255,0.66,185.33,185.29,48.45380692]
[1754883272632,0.66,185.33,185.29,43.05686656]
[1754883273336,6.0557816,185.33,185.29,38.24]
[1754883273521,5.3957816,185.33,185.29,38.24]
[1754883273729,4.81686656,185.31,185.28,38.24]
[1754883274032,0.69,185.33,185.3,4.81686656]
[1754883274243,0.69,185.32,185.3,4.81686656]
[1754883274420,0.69,185.31,185.3,4.81686656]
[1754883274615,0.69,185.31,185.28,38.24]
[1754883274820,5.50686656,185.31,185.28,38.24]
[1754883275017,4.81686656,185.29,185.22,4.81686656]
[1754883275319,4.81686656,185.27,185.23,53.34621557]
[1754883275756,0.69,185.27,185.23,58.16308213]
[1754883276055,0.69,185.27,185.23,64.27161618]
[1754883276426,4.81686656,185.29,185.23,64.27161618]
[1754883276427,10.90382654,185.29,185.23,64.27161618]
[1754883276827,4.81686656,185.26,185.23,38.24]
[1754883277034,5.39695998,185.29,185.24,15.81621557]
[1754883277222,4.81686656,185.33,185.28,4.81686656]
[1754883277423,0.69,185.32,185.28,4.81686656]
[1754883277655,0.69,185.32,185.27,38.24]
[1754883277950,0.69,185.32,185.28,4.81686656]
[1754883278341,5.39607175,185.32,185.27,44.34752105]
[1754883278544,0.69,185.31,185.27,38.24]
[1754883279548,0.69,185.31,185.27,48.45430384]
[1754883280381,4.81686656,185.32,185.27,48.45430384]
[1754883280538,10.90272483,185.33,185.27,48.45430384]
[1754883280727,5.50686656,185.33,185.28,0.71]
[1754883281056,10.90266903,185.33,185.28,0.71]
[1754883281356,31.50686656,185.35,185.29,5.52686656]
[1754883281653,4.81686656,185.34,185.29,5.52686656]
[1754883282054,5.50686656,185.34,185.29,5.52686656]
[1754883282349,10.90236338,185.34,185.29,5.52686656]
[1754883282533,10.21236338,185.34,185.29,5.52686656]
[1754883282738,0.69,185.33,185.28,4.81686656]
[1754883282938,0.69,185.32,185.27,38.24]
[1754883283155,4.81686656,185.31,185.27,38.24]
[1754883283454,0.69,185.3,185.27,38.24]
[1754883283638,0.69,185.29,185.24,105.41621557]
[1754883283825,0.69,185.29,185.24,58.87308213]
[1754883283826,5.50686656,185.29,185.24,58.87308213]
[1754883284034,4.81686656,185.29,185.25,0.71]
[1754883284252,10.21381424,185.29,185.25,0.71]
[1754883284577,10.90381424,185.29,185.24,53.34621557]
[1754883284757,4.81686656,185.29,185.24,58.16308213]
[1754883284963,4.81686656,185.29,185.25,0.71]
[1754883285378,4.81686656,185.3,185.25,0.71]
[1754883285573,0.06,185.33,185.26,0.71]
[1754883285759,4.81686656,185.32,185.26,5.52686656]
[1754883286379,10.21318798,185.32,185.26,5.52686656]
[1754883286580,4.81686656,185.31,185.26,0.71]
[1754883287082,10.9627864,185.33,185.27,5.52686656]
[1754883287286,10.9627864,185.33,185.27,43.76686656]
[1754883288067,4.81686656,185.32,185.27,49.16428681]
[1754883288268,4.81686656,185.32,185.28,0.71]
[1754883290661,4.81686656,185.32,185.28,6.107178]
[1754883290979,0.06,185.33,185.29,5.52686656]
[1754883291970,0.06,185.33,185.29,10.9237001]
[1754883292473,0.06,185.33,185.3,0.71]
[1754883293496,0.06,185.33,185.31,0.71]
[1754883293698,0.06,185.33,185.31,5.52686656]
[1754883293872,0.06,185.33,185.32,0.71]
[1754883295295,0.06,185.33,185.3,5.52686656]
[1754883295669,0.06,185.33,185.3,4.81686656]
[1754883295869,0.06,185.33,185.31,0.71]
[1754883296290,0.06,185.33,185.28,10.21410317]
[1754883296476,5.50686656,185.32,185.27,38.24]
[1754883296792,4.87686656,185.33,185.28,0.71]
[1754883296993,0.06,185.33,185.29,0.71]
[1754883297169,0.06,185.33,185.29,5.52686656]
[1754883297369,0.06,185.33,185.29,4.81686656]
[1754883297591,0.06,185.33,185.3,0.71]
[1754883298101,0.06,185.33,185.31,0.71]
[1754883299487,0.06,185.33,185.32,20.63308213]
[1754883299808,0.06,185.33,185.32,24.66245863]
[1754883299983,0.06,185.35,185.33,15.10621557]
[1754883300178,0.06,185.35,185.34,23.95245863]
[1754883300487,0.06,185.35,185.34,4.0293765]
[1754883300804,0.06,185.35,185.32,4.81686656]
[1754883300991,0.06,185.35,185.32,10.21292644]
[1754883301185,0.06,185.35,185.32,5.48686656]
[1754883302283,5.56686656,185.35,185.31,38.22]
[1754883302484,4.87686656,185.35,185.31,38.89]
[1754883302698,0.06,185.35,185.32,0.67]
[1754883303286,10.96207208,185.35,185.31,38.22]
[1754883303510,0.06,185.35,185.31,38.89]
[1754883303712,0.06,185.35,185.32,0.67]
[1754883304691,0.06,185.35,185.31,38.22]
[1754883305014,4.81686656,185.34,185.31,38.22]
[1754883305218,5.50686656,185.34,185.29,90.27]
[1754883305429,4.81686656,185.3,185.26,0.67]
[1754883305580,4.81686656,185.29,185.26,0.67]
[1754883305780,4.81686656,185.28,185.24,38.89]
[1754883306021,4.81686656,185.27,185.24,38.22]
[1754883306714,4.81686656,185.25,185.21,0.03]
[1754883306899,0.69,185.26,185.21,0.03]
[1754883307089,4.81686656,185.24,185.21,0.7]
[1754883307430,5.39755433,185.27,185.22,0.67]
[1754883307615,4.81686656,185.26,185.23,0.67]
[1754883307788,31.39718552,185.29,185.24,0.67]
[1754883308112,4.81686656,185.26,185.21,0.03]
[1754883308303,4.81686656,185.24,185.21,0.03]
[1754883308512,4.81686656,185.23,185.21,0.03]
[1754883309289,4.81686656,185.24,185.21,0.7]
[1754883309488,4.81686656,185.26,185.22,0.67]
[1754883309717,4.81686656,185.26,185.21,0.03]
[1754883309890,4.81686656,185.26,185.22,0.67]
[1754883310089,4.81686656,185.25,185.21,0.03]
[1754883310309,4.81686656,185.25,185.21,0.7]
[1754883310480,10.21478792,185.26,185.21,0.03]
[1754883310684,10.21478792,185.26,185.22,0.67]
[1754883311304,4.81686656,185.25,185.22,0.67]
[1754883312704,4.81686656,185.26,185.21,5.4292732]
[1754883312902,4.81686656,185.25,185.21,0.03]
[1754883313089,4.81686656,185.25,185.21,0.7]
[1754883313905,6.08810958,185.26,185.21,0.7]
[1754883314110,4.81686656,185.25,185.21,0.7]
[1754883316623,4.81686656,185.27,185.21,10.91614044]
[1754883316827,4.81686656,185.27,185.22,5.48686656]
[1754883316995,4.81686656,185.26,185.22,0.67]
[1754883317200,5.50686656,185.26,185.21,4.84686656]
[1754883317401,4.81686656,185.25,185.21,0.03]
[1754883317601,4.81686656,185.26,185.22,0.67]
[1754883318142,4.81686656,185.26,185.21,10.246129]
[1754883318424,4.81686656,185.25,185.22,0.67]
[1754883318632,4.81686656,185.25,185.21,0.7]
[1754883319317,0.69,185.26,185.21,6.0992583]
[1754883319526,5.15758411,185.27,185.22,0.67]
[1754883319725,4.81686656,185.26,185.22,0.67]
[1754883320096,9.97445067,185.27,185.22,0.67]
[1754883320296,9.97445067,185.27,185.23,0.67]
[1754883320513,4.81686656,185.26,185.23,0.67]
[1754883320901,4.81686656,185.26,185.21,10.24612486]
[1754883321118,4.81686656,185.26,185.24,0.67]
[1754883321502,5.50686656,185.26,185.21,10.91612486]
[1754883321720,10.21441776,185.27,185.22,0.67]
[1754883321898,10.21441776,185.27,185.23,0.67]
[1754883322413,4.81686656,185.26,185.21,0.7]
[1754883322726,64.93,185.3,185.23,4.81686656]
[1754883322915,4.81686656,185.29,185.24,0.67]
[1754883323231,5.50686656,185.29,185.24,0.67]
[1754883323422,4.81686656,185.28,185.24,0.67]
[1754883323599,4.81686656,185.27,185.22,95.08686656]
[1754883323798,4.81686656,185.27,185.22,100.48575756]